[Event "December 5 Late 2023"]
[Site "https://www.chess.com"]
[Date "2023.12.05"]
[Round "11"]
[White "Reprintsev, Alexander"]
[Black "Mekhitarian, Krikor Sevag"]
[Result "1/2-1/2"]
[Board "52"]
[TimeControl "180+1"]
[WhiteFideId "14100541"]
[BlackFideId "2107660"]
[WhiteElo "2489"]
[BlackElo "2802"]
[WhiteTeam "UKR"]
[BlackTeam "BRA"]
[WhiteClock "0:00:07"]
[BlackClock "0:00:05"]

1. e4 {[%clk 0:03:00]}  e6 {[%clk 0:02:59]} 2. d4 {[%clk 0:03:00]}  d5 {[%clk 0:03:00]} 3. Nc3 {[%clk 0:03:00]}  Nf6 {[%clk 0:03:00]} 4. Bg5 {[%clk 0:02:59]}  dxe4 {[%clk 0:03:00]} 5. Nxe4 {[%clk 0:02:58]}  Be7 {[%clk 0:03:01]} 6. Bxf6 {[%clk 0:02:58]}  gxf6 {[%clk 0:03:01]} 7. Nc3 {[%clk 0:02:44]}  a6 {[%clk 0:03:00]} 8. g3 {[%clk 0:02:34]}  h5 {[%clk 0:03:00]} 9. h4 {[%clk 0:02:33]}  Nc6 {[%clk 0:03:00]} 10. Nge2 {[%clk 0:02:32]}  e5 {[%clk 0:03:01]} 11. d5 {[%clk 0:02:31]}  Na5 {[%clk 0:02:53]} 12. Qd3 {[%clk 0:02:20]}  b5 {[%clk 0:02:47]} 13. b3 {[%clk 0:02:19]}  Nb7 {[%clk 0:02:46]} 14. Bg2 {[%clk 0:02:10]}  Nd6 {[%clk 0:02:47]} 15. a4 {[%clk 0:02:08]}  f5 {[%clk 0:02:33]} 16. axb5 {[%clk 0:02:03]}  e4 {[%clk 0:02:34]} 17. Qe3 {[%clk 0:01:54]}  Bf6 {[%clk 0:02:32]} 18. bxa6 {[%clk 0:01:51]}  Bxa6 {[%clk 0:02:31]} 19. O-O {[%clk 0:01:46]}  Kf8 {[%clk 0:02:03]} 20. Rfe1 {[%clk 0:01:46]}  Kg7 {[%clk 0:02:03]} 21. Nd4 {[%clk 0:01:43]}  Qe8 {[%clk 0:01:54]} 22. Nce2 {[%clk 0:01:19]}  Bxe2 {[%clk 0:01:47]} 23. Rxa8 {[%clk 0:01:18]}  Qxa8 {[%clk 0:01:48]} 24. Nxe2 {[%clk 0:01:04]}  Qxd5 {[%clk 0:01:47]} 25. Nf4 {[%clk 0:01:00]}  Qd4 {[%clk 0:01:36]} 26. Qe2 {[%clk 0:01:00]}  Be5 {[%clk 0:01:24]} 27. Nxh5+ {[%clk 0:00:59]}  Kg6 {[%clk 0:01:24]} 28. Rd1 {[%clk 0:00:52]}  Qb4 {[%clk 0:00:43]} 29. g4 {[%clk 0:00:52]}  Qc3 {[%clk 0:00:17]} 30. gxf5+ {[%clk 0:00:49]}  Kh6 {[%clk 0:00:15]} 31. Ng3 {[%clk 0:00:13]}  Bxg3 {[%clk 0:00:15]} 32. fxg3 {[%clk 0:00:13]}  Qxg3 {[%clk 0:00:15]} 33. Qe1 {[%clk 0:00:07]}  Qe5 {[%clk 0:00:12]} 34. Qd2+ {[%clk 0:00:07]}  e3 {[%clk 0:00:11]} 35. Qd5 {[%clk 0:00:07]}  Qxd5 {[%clk 0:00:07]} 36. Rxd5 {[%clk 0:00:07]}  Re8 {[%clk 0:00:06]} 37. Kf1 {[%clk 0:00:07]}  Rg8 {[%clk 0:00:05]} 38. Bf3 {[%clk 0:00:07]}  Rg3 {[%clk 0:00:01]} 39. Ke2 {[%clk 0:00:07]}  Rh3 {[%clk 0:00:02]} 40. Kxe3 {[%clk 0:00:07]}  Kg7 {[%clk 0:00:02]} 41. c4 {[%clk 0:00:06]}  Kf6 {[%clk 0:00:02]} 42. Kf2 {[%clk 0:00:05]}  Rh2+ {[%clk 0:00:02]} 43. Kg3 {[%clk 0:00:05]}  Rb2 {[%clk 0:00:03]} 44. Rd3 {[%clk 0:00:04]}  Nxf5+ {[%clk 0:00:03]} 45. Kf4 {[%clk 0:00:03]}  Nxh4 {[%clk 0:00:03]} 46. Be4 {[%clk 0:00:02]}  Ng6+ {[%clk 0:00:01]} 47. Ke3 {[%clk 0:00:02]}  Ne5 {[%clk 0:00:01]} 48. Rc3 {[%clk 0:00:03]}  Ke7 {[%clk 0:00:01]} 49. Kd4 {[%clk 0:00:03]}  f6 {[%clk 0:00:01]} 50. Kc5 {[%clk 0:00:01]}  Nd7+ {[%clk 0:00:01]} 51. Kc6 {[%clk 0:00:01]}  Ra2 {[%clk 0:00:01]} 52. Kxc7 {[%clk 0:00:01]}  Ne5 {[%clk 0:00:02]} 53. Kb6 {[%clk 0:00:01]}  Nd7+ {[%clk 0:00:01]} 54. Kb5 {[%clk 0:00:01]}  Ra1 {[%clk 0:00:01]} 55. Kb4 {[%clk 0:00:01]}  Ne5 {[%clk 0:00:01]} 56. c5 {[%clk 0:00:02]}  f5 {[%clk 0:00:02]} 57. Bxf5 {[%clk 0:00:02]}  Nc6+ {[%clk 0:00:03]} 58. Kc4 {[%clk 0:00:02]}  Ra7 {[%clk 0:00:01]} 59. Be4 {[%clk 0:00:02]}  Ne5+ {[%clk 0:00:02]} 60. Kd4 {[%clk 0:00:02]}  Nd7 {[%clk 0:00:02]} 61. c6 {[%clk 0:00:02]}  Nb6 {[%clk 0:00:03]} 62. c7 {[%clk 0:00:02]}  Nc8 {[%clk 0:00:03]} 63. b4 {[%clk 0:00:02]}  Kd6 {[%clk 0:00:03]} 64. Bf5 {[%clk 0:00:02]}  Rxc7 {[%clk 0:00:03]} 65. Rxc7 {[%clk 0:00:03]}  Kxc7 {[%clk 0:00:03]} 66. Bxc8 {[%clk 0:00:03]}  Kxc8 {[%clk 0:00:04]} 67. Kc4 {[%clk 0:00:03]}  Kb8 {[%clk 0:00:02]} 68. Kc5 {[%clk 0:00:03]}  Kc7 {[%clk 0:00:01]} 69. Kb5 {[%clk 0:00:04]}  Kb7 {[%clk 0:00:02]} 70. Ka5 {[%clk 0:00:04]}  Ka7 {[%clk 0:00:02]} 71. Kb5 {[%clk 0:00:04]}  Kb7 {[%clk 0:00:03]} 72. Kc5 {[%clk 0:00:05]}  Kc7 {[%clk 0:00:04]} 73. b5 {[%clk 0:00:06]}  Kb7 {[%clk 0:00:04]} 74. b6 {[%clk 0:00:04]}  Kb8 {[%clk 0:00:04]} 75. Kc6 {[%clk 0:00:05]}  Kc8 {[%clk 0:00:05]} 76. b7+ {[%clk 0:00:06]}  Kb8 {[%clk 0:00:05]} 77. Kb6 {[%clk 0:00:07]} 1/2-1/2

[Event "December 5 Late 2023"]
[Site "https://www.chess.com"]
[Date "2023.12.05"]
[Round "11"]
[White "Ladan, Nicholas"]
[Black "Chan, Yi Ren Daniel"]
[Result "1-0"]
[Board "54"]
[TimeControl "180+1"]
[WhiteFideId "30918855"]
[BlackFideId "5801583"]
[WhiteElo "2478"]
[BlackElo "2779"]
[WhiteTeam "USA"]
[BlackTeam "SGP"]
[WhiteClock "0:00:08"]
[BlackClock "0:00:20"]

1. d4 {[%clk 0:03:00]}  d5 {[%clk 0:02:57]} 2. Nf3 {[%clk 0:03:01]}  Nf6 {[%clk 0:02:54]} 3. Bf4 {[%clk 0:03:02]}  c5 {[%clk 0:02:54]} 4. e3 {[%clk 0:03:02]}  Nc6 {[%clk 0:02:54]} 5. c3 {[%clk 0:03:00]}  Bf5 {[%clk 0:02:53]} 6. Nbd2 {[%clk 0:02:58]}  Qb6 {[%clk 0:02:53]} 7. Qb3 {[%clk 0:02:58]}  c4 {[%clk 0:02:54]} 8. Qxb6 {[%clk 0:02:54]}  axb6 {[%clk 0:02:54]} 9. a3 {[%clk 0:02:49]}  b5 {[%clk 0:02:55]} 10. Rc1 {[%clk 0:02:50]}  e6 {[%clk 0:02:55]} 11. Nh4 {[%clk 0:02:48]}  h6 {[%clk 0:02:52]} 12. Nxf5 {[%clk 0:02:47]}  exf5 {[%clk 0:02:53]} 13. h4 {[%clk 0:02:47]}  Ne4 {[%clk 0:02:53]} 14. Nxe4 {[%clk 0:02:39]}  fxe4 {[%clk 0:02:43]} 15. g4 {[%clk 0:02:39]}  Be7 {[%clk 0:02:36]} 16. Kd2 {[%clk 0:02:30]}  Na5 {[%clk 0:02:35]} 17. Kc2 {[%clk 0:02:28]}  Nb3 {[%clk 0:02:32]} 18. Re1 {[%clk 0:02:28]}  g6 {[%clk 0:02:27]} 19. Bg2 {[%clk 0:02:23]}  f5 {[%clk 0:02:07]} 20. gxf5 {[%clk 0:02:14]}  gxf5 {[%clk 0:02:08]} 21. Bh3 {[%clk 0:02:11]}  b4 {[%clk 0:01:53]} 22. cxb4 {[%clk 0:02:07]}  Ra6 {[%clk 0:01:47]} 23. Bxf5 {[%clk 0:02:04]}  Rf8 {[%clk 0:01:47]} 24. Bc8 {[%clk 0:01:58]}  Nxd4+ {[%clk 0:01:45]} 25. Kb1 {[%clk 0:01:49]}  Rb6 {[%clk 0:01:29]} 26. Rd1 {[%clk 0:01:14]}  Ne2 {[%clk 0:01:28]} 27. Be5 {[%clk 0:00:56]}  Rxf2 {[%clk 0:00:45]} 28. Rxd5 {[%clk 0:00:46]}  c3 {[%clk 0:00:45]} 29. bxc3 {[%clk 0:00:36]}  Kf7 {[%clk 0:00:45]} 30. Rh2 {[%clk 0:00:26]}  Rf1+ {[%clk 0:00:43]} 31. Kc2 {[%clk 0:00:25]}  Nc1 {[%clk 0:00:43]} 32. Bh3 {[%clk 0:00:21]}  Rg1 {[%clk 0:00:37]} 33. Rf2+ {[%clk 0:00:21]}  Ke8 {[%clk 0:00:37]} 34. Bd7+ {[%clk 0:00:19]}  Kd8 {[%clk 0:00:37]} 35. Ba4+ {[%clk 0:00:14]}  Kc8 {[%clk 0:00:37]} 36. Rf7 {[%clk 0:00:13]}  Nd3 {[%clk 0:00:28]} 37. Rxe7 {[%clk 0:00:12]}  Rg2+ {[%clk 0:00:29]} 38. Kb3 {[%clk 0:00:09]}  Nc1+ {[%clk 0:00:18]} 39. Kc4 {[%clk 0:00:08]}  Rg8 {[%clk 0:00:19]} 40. Rc5+ {[%clk 0:00:07]}  Kd8 {[%clk 0:00:19]} 41. Rd7+ {[%clk 0:00:07]}  Ke8 {[%clk 0:00:20]} 42. Rc8# {[%clk 0:00:08]} 1-0

[Event "December 5 Late 2023"]
[Site "https://www.chess.com"]
[Date "2023.12.05"]
[Round "11"]
[White "Uryupin, Igor"]
[Black "Schnaider, Ilan"]
[Result "1-0"]
[Board "55"]
[TimeControl "180+1"]
[WhiteFideId "4182529"]
[BlackFideId "169013"]
[WhiteElo "2463"]
[BlackElo "2670"]
[WhiteTeam "RUS"]
[BlackTeam "ARG"]
[WhiteClock "0:00:11"]
[BlackClock "0:00:01"]

1. d4 {[%clk 0:03:00]}  d5 {[%clk 0:02:59]} 2. Nf3 {[%clk 0:03:00]}  Nf6 {[%clk 0:02:58]} 3. Bf4 {[%clk 0:03:00]}  Bf5 {[%clk 0:02:54]} 4. e3 {[%clk 0:02:59]}  c5 {[%clk 0:02:51]} 5. dxc5 {[%clk 0:02:51]}  e6 {[%clk 0:02:45]} 6. Bxb8 {[%clk 0:02:41]}  Qxb8 {[%clk 0:02:28]} 7. Bb5+ {[%clk 0:02:40]}  Nd7 {[%clk 0:02:28]} 8. b4 {[%clk 0:02:28]}  a5 {[%clk 0:02:22]} 9. Qd4 {[%clk 0:02:03]}  f6 {[%clk 0:02:06]} 10. a3 {[%clk 0:01:48]}  Be7 {[%clk 0:01:44]} 11. O-O {[%clk 0:01:41]}  axb4 {[%clk 0:01:39]} 12. axb4 {[%clk 0:01:38]}  Rxa1 {[%clk 0:01:36]} 13. Qxa1 {[%clk 0:01:38]}  e5 {[%clk 0:01:37]} 14. c4 {[%clk 0:01:20]}  d4 {[%clk 0:00:47]} 15. exd4 {[%clk 0:01:12]}  O-O {[%clk 0:00:35]} 16. d5 {[%clk 0:01:12]}  Bg4 {[%clk 0:00:29]} 17. Nbd2 {[%clk 0:01:07]}  e4 {[%clk 0:00:16]} 18. Qd4 {[%clk 0:00:55]}  exf3 {[%clk 0:00:09]} 19. Qxg4 {[%clk 0:00:53]}  fxg2 {[%clk 0:00:09]} 20. Re1 {[%clk 0:00:47]}  Ne5 {[%clk 0:00:08]} 21. Qe6+ {[%clk 0:00:42]}  Rf7 {[%clk 0:00:08]} 22. d6 {[%clk 0:00:35]}  Bf8 {[%clk 0:00:09]} 23. Rxe5 {[%clk 0:00:27]}  fxe5 {[%clk 0:00:03]} 24. Be8 {[%clk 0:00:27]}  Qxe8 {[%clk 0:00:02]} 25. Qxe8 {[%clk 0:00:25]}  Rf4 {[%clk 0:00:02]} 26. Kxg2 {[%clk 0:00:24]}  Rg4+ {[%clk 0:00:02]} 27. Kf1 {[%clk 0:00:21]}  Rf4 {[%clk 0:00:03]} 28. f3 {[%clk 0:00:18]}  Rd4 {[%clk 0:00:04]} 29. Ke2 {[%clk 0:00:17]}  g6 {[%clk 0:00:03]} 30. Ne4 {[%clk 0:00:17]}  Kg7 {[%clk 0:00:02]} 31. Ng5 {[%clk 0:00:17]}  Kh6 {[%clk 0:00:02]} 32. Ne6 {[%clk 0:00:15]}  Rh4 {[%clk 0:00:02]} 33. Qxf8+ {[%clk 0:00:14]}  Kh5 {[%clk 0:00:03]} 34. Qf6 {[%clk 0:00:14]}  Rxh2+ {[%clk 0:00:03]} 35. Ke3 {[%clk 0:00:14]}  Rg2 {[%clk 0:00:03]} 36. d7 {[%clk 0:00:12]}  e4 {[%clk 0:00:02]} 37. d8=Q {[%clk 0:00:11]}  Rh2 {[%clk 0:00:01]} 38. Qg5# {[%clk 0:00:11]} 1-0

[Event "December 5 Late 2023"]
[Site "https://www.chess.com"]
[Date "2023.12.05"]
[Round "11"]
[White "Buchenau, Frank"]
[Black "Soderstrom, Adrian"]
[Result "1/2-1/2"]
[Board "59"]
[TimeControl "180+1"]
[WhiteFideId "4604350"]
[BlackFideId "1745786"]
[WhiteElo "2433"]
[BlackElo "2553"]
[WhiteTeam "GER"]
[BlackTeam "SWE"]
[WhiteClock "0:00:26"]
[BlackClock "0:00:18"]

1. e4 {[%clk 0:03:00]}  e6 {[%clk 0:02:59]} 2. d4 {[%clk 0:03:00]}  d5 {[%clk 0:03:00]} 3. Nc3 {[%clk 0:02:59]}  dxe4 {[%clk 0:02:59]} 4. Nxe4 {[%clk 0:02:58]}  Be7 {[%clk 0:03:00]} 5. Nf3 {[%clk 0:02:55]}  Nf6 {[%clk 0:03:00]} 6. Bd3 {[%clk 0:02:54]}  Nbd7 {[%clk 0:03:00]} 7. c3 {[%clk 0:02:54]}  O-O {[%clk 0:03:00]} 8. O-O {[%clk 0:02:54]}  b6 {[%clk 0:03:00]} 9. Qc2 {[%clk 0:02:44]}  Bb7 {[%clk 0:02:58]} 10. Neg5 {[%clk 0:02:40]}  h6 {[%clk 0:02:56]} 11. Nh7 {[%clk 0:02:38]}  Nxh7 {[%clk 0:02:56]} 12. Bxh7+ {[%clk 0:02:37]}  Kh8 {[%clk 0:02:56]} 13. Be4 {[%clk 0:02:38]}  Bxe4 {[%clk 0:02:54]} 14. Qxe4 {[%clk 0:02:37]}  Nf6 {[%clk 0:02:55]} 15. Qc6 {[%clk 0:02:26]}  Qd5 {[%clk 0:02:47]} 16. Ne5 {[%clk 0:02:24]}  Bd6 {[%clk 0:02:41]} 17. Qxd5 {[%clk 0:02:16]}  Nxd5 {[%clk 0:02:42]} 18. Nc6 {[%clk 0:02:10]}  Ne7 {[%clk 0:02:40]} 19. Nxe7 {[%clk 0:02:09]}  Bxe7 {[%clk 0:02:41]} 20. Bf4 {[%clk 0:02:07]}  Bd6 {[%clk 0:02:41]} 21. Be3 {[%clk 0:01:59]}  Rfd8 {[%clk 0:02:32]} 22. a4 {[%clk 0:01:58]}  c5 {[%clk 0:02:15]} 23. a5 {[%clk 0:01:55]}  cxd4 {[%clk 0:02:15]} 24. Bxd4 {[%clk 0:01:55]}  Bc5 {[%clk 0:02:11]} 25. Bxc5 {[%clk 0:01:53]}  bxc5 {[%clk 0:02:11]} 26. Rfd1 {[%clk 0:01:51]}  Rab8 {[%clk 0:02:04]} 27. Kf1 {[%clk 0:01:51]}  Rxd1+ {[%clk 0:01:54]} 28. Rxd1 {[%clk 0:01:52]}  Rxb2 {[%clk 0:01:54]} 29. Rd7 {[%clk 0:01:46]}  Rc2 {[%clk 0:01:36]} 30. Rxf7 {[%clk 0:01:39]}  a6 {[%clk 0:01:22]} 31. Ra7 {[%clk 0:01:34]}  Rxc3 {[%clk 0:01:22]} 32. Rxa6 {[%clk 0:01:34]}  Ra3 {[%clk 0:01:18]} 33. Ke2 {[%clk 0:01:30]}  Kg8 {[%clk 0:01:15]} 34. Rxe6 {[%clk 0:01:23]}  Rxa5 {[%clk 0:01:14]} 35. Kd3 {[%clk 0:01:13]}  Ra2 {[%clk 0:01:10]} 36. Re2 {[%clk 0:01:12]}  c4+ {[%clk 0:01:11]} 37. Ke3 {[%clk 0:01:12]}  Ra8 {[%clk 0:00:39]} 38. Kd4 {[%clk 0:01:10]}  Rc8 {[%clk 0:00:38]} 39. Rc2 {[%clk 0:01:09]}  Kf7 {[%clk 0:00:35]} 40. Rxc4 {[%clk 0:01:09]}  Re8 {[%clk 0:00:31]} 41. Rc7+ {[%clk 0:01:07]}  Kg6 {[%clk 0:00:31]} 42. Rc6+ {[%clk 0:01:06]}  Kg5 {[%clk 0:00:28]} 43. Kd3 {[%clk 0:01:04]}  h5 {[%clk 0:00:27]} 44. Rc5+ {[%clk 0:01:01]}  Kh6 {[%clk 0:00:27]} 45. h4 {[%clk 0:01:00]}  Re6 {[%clk 0:00:26]} 46. Rc4 {[%clk 0:00:52]}  Rg6 {[%clk 0:00:24]} 47. g3 {[%clk 0:00:51]}  Re6 {[%clk 0:00:24]} 48. Re4 {[%clk 0:00:51]}  Ra6 {[%clk 0:00:22]} 49. Ke3 {[%clk 0:00:51]}  Ra2 {[%clk 0:00:21]} 50. Re6+ {[%clk 0:00:48]}  g6 {[%clk 0:00:21]} 51. f3 {[%clk 0:00:46]}  Ra3+ {[%clk 0:00:22]} 52. Kf4 {[%clk 0:00:45]}  Ra4+ {[%clk 0:00:23]} 53. Re4 {[%clk 0:00:45]}  Ra3 {[%clk 0:00:23]} 54. g4 {[%clk 0:00:45]}  hxg4 {[%clk 0:00:22]} 55. fxg4 {[%clk 0:00:45]}  g5+ {[%clk 0:00:17]} 56. hxg5+ {[%clk 0:00:45]}  Kg6 {[%clk 0:00:18]} 57. Re6+ {[%clk 0:00:45]}  Kg7 {[%clk 0:00:19]} 58. Rb6 {[%clk 0:00:40]}  Ra4+ {[%clk 0:00:19]} 59. Kf5 {[%clk 0:00:40]}  Ra5+ {[%clk 0:00:19]} 60. Kf4 {[%clk 0:00:39]}  Ra4+ {[%clk 0:00:20]} 61. Kg3 {[%clk 0:00:39]}  Ra1 {[%clk 0:00:18]} 62. Rf6 {[%clk 0:00:35]}  Rg1+ {[%clk 0:00:18]} 63. Kf4 {[%clk 0:00:35]}  Rf1+ {[%clk 0:00:17]} 64. Ke5 {[%clk 0:00:35]}  Re1+ {[%clk 0:00:18]} 65. Kf5 {[%clk 0:00:36]}  Rf1+ {[%clk 0:00:18]} 66. Ke6 {[%clk 0:00:36]}  Re1+ {[%clk 0:00:18]} 67. Kd7 {[%clk 0:00:36]}  Rg1 {[%clk 0:00:18]} 68. Rf4 {[%clk 0:00:33]}  Re1 {[%clk 0:00:18]} 69. Kd6 {[%clk 0:00:32]}  Kg6 {[%clk 0:00:18]} 70. Rf5 {[%clk 0:00:32]}  Re4 {[%clk 0:00:18]} 71. Re5 {[%clk 0:00:26]}  Rxe5 {[%clk 0:00:16]} 72. Kxe5 {[%clk 0:00:26]}  Kxg5 {[%clk 0:00:17]} 73. Ke4 {[%clk 0:00:26]}  Kxg4 {[%clk 0:00:18]} 1/2-1/2

[Event "December 5 Late 2023"]
[Site "https://www.chess.com"]
[Date "2023.12.05"]
[Round "11"]
[White "Kostiukov, Alexandr"]
[Black "Hajiyev, Kanan"]
[Result "1-0"]
[Board "63"]
[TimeControl "180+1"]
[WhiteFideId "14108100"]
[BlackFideId "13404148"]
[WhiteElo "2380"]
[BlackElo "2519"]
[WhiteTeam "UKR"]
[BlackTeam "AZE"]
[WhiteClock "0:00:07"]
[BlackClock "0:00:02"]

1. g3 {[%clk 0:03:00]}  d5 {[%clk 0:03:00]} 2. Bg2 {[%clk 0:03:00]}  Nf6 {[%clk 0:03:01]} 3. d3 {[%clk 0:03:01]}  e6 {[%clk 0:02:52]} 4. e4 {[%clk 0:03:01]}  b6 {[%clk 0:02:34]} 5. e5 {[%clk 0:02:57]}  Nfd7 {[%clk 0:02:31]} 6. f4 {[%clk 0:02:58]}  c5 {[%clk 0:02:26]} 7. c4 {[%clk 0:02:52]}  Bb7 {[%clk 0:02:24]} 8. Nc3 {[%clk 0:02:51]}  f6 {[%clk 0:02:14]} 9. cxd5 {[%clk 0:02:30]}  fxe5 {[%clk 0:02:10]} 10. Qg4 {[%clk 0:01:56]}  Nf6 {[%clk 0:01:38]} 11. Qxe6+ {[%clk 0:01:54]}  Be7 {[%clk 0:01:36]} 12. Qxe5 {[%clk 0:01:33]}  O-O {[%clk 0:01:36]} 13. Nge2 {[%clk 0:01:32]}  Bd6 {[%clk 0:01:27]} 14. Qe6+ {[%clk 0:01:30]}  Kh8 {[%clk 0:01:27]} 15. Ne4 {[%clk 0:01:20]}  Bxd5 {[%clk 0:01:19]} 16. Qh3 {[%clk 0:01:10]}  Be7 {[%clk 0:00:53]} 17. O-O {[%clk 0:01:04]}  Nc6 {[%clk 0:00:53]} 18. N2c3 {[%clk 0:00:58]}  Bg8 {[%clk 0:00:34]} 19. g4 {[%clk 0:00:53]}  Nd5 {[%clk 0:00:27]} 20. Nxd5 {[%clk 0:00:49]}  Bxd5 {[%clk 0:00:26]} 21. Be3 {[%clk 0:00:42]}  Nd4 {[%clk 0:00:26]} 22. Bxd4 {[%clk 0:00:41]}  cxd4 {[%clk 0:00:27]} 23. b3 {[%clk 0:00:37]}  Rc8 {[%clk 0:00:27]} 24. Rae1 {[%clk 0:00:37]}  Rc2 {[%clk 0:00:27]} 25. Qg3 {[%clk 0:00:20]}  a5 {[%clk 0:00:26]} 26. Rf2 {[%clk 0:00:19]}  Rxf2 {[%clk 0:00:22]} 27. Qxf2 {[%clk 0:00:18]}  Qc7 {[%clk 0:00:22]} 28. f5 {[%clk 0:00:17]}  Qd8 {[%clk 0:00:20]} 29. Re2 {[%clk 0:00:16]}  a4 {[%clk 0:00:19]} 30. bxa4 {[%clk 0:00:16]}  Bh4 {[%clk 0:00:18]} 31. Qf4 {[%clk 0:00:14]}  Re8 {[%clk 0:00:18]} 32. Rc2 {[%clk 0:00:13]}  h6 {[%clk 0:00:16]} 33. Bf3 {[%clk 0:00:13]}  Be7 {[%clk 0:00:15]} 34. Kg2 {[%clk 0:00:12]}  Bxe4 {[%clk 0:00:10]} 35. Bxe4 {[%clk 0:00:12]}  Bg5 {[%clk 0:00:10]} 36. Qg3 {[%clk 0:00:11]}  Qe7 {[%clk 0:00:10]} 37. Rc7 {[%clk 0:00:11]}  Qa3 {[%clk 0:00:09]} 38. Qf2 {[%clk 0:00:10]}  Be3 {[%clk 0:00:09]} 39. Qc2 {[%clk 0:00:10]}  Qd6 {[%clk 0:00:06]} 40. Rc8 {[%clk 0:00:10]}  Qe7 {[%clk 0:00:06]} 41. Qc6 {[%clk 0:00:08]}  Qf8 {[%clk 0:00:02]} 42. Rxe8 {[%clk 0:00:07]} 1-0

[Event "December 5 Late 2023"]
[Site "https://www.chess.com"]
[Date "2023.12.05"]
[Round "11"]
[White "Rian, Kapriaga"]
[Black "Kovalevsky, Stanislav"]
[Result "1-0"]
[Board "65"]
[TimeControl "180+1"]
[WhiteFideId "7103263"]
[BlackFideId "13508598"]
[WhiteElo "2350"]
[BlackElo "2504"]
[WhiteTeam "INA"]
[BlackTeam "FID"]
[WhiteClock "0:01:22"]
[BlackClock "0:00:09"]

1. d4 {[%clk 0:03:00]}  d5 {[%clk 0:02:57]} 2. Nf3 {[%clk 0:03:01]}  Nf6 {[%clk 0:02:57]} 3. Bf4 {[%clk 0:03:01]}  e6 {[%clk 0:02:57]} 4. e3 {[%clk 0:03:01]}  c5 {[%clk 0:02:58]} 5. Nbd2 {[%clk 0:03:00]}  Nc6 {[%clk 0:02:58]} 6. c3 {[%clk 0:02:59]}  Bd6 {[%clk 0:02:58]} 7. Ne5 {[%clk 0:02:55]}  Bxe5 {[%clk 0:02:57]} 8. Bxe5 {[%clk 0:02:49]}  Nxe5 {[%clk 0:02:56]} 9. dxe5 {[%clk 0:02:48]}  Nd7 {[%clk 0:02:56]} 10. f4 {[%clk 0:02:48]}  O-O {[%clk 0:02:52]} 11. Bd3 {[%clk 0:02:46]}  f5 {[%clk 0:02:48]} 12. exf6 {[%clk 0:02:45]}  Qxf6 {[%clk 0:02:44]} 13. O-O {[%clk 0:02:41]}  b6 {[%clk 0:02:42]} 14. Qe2 {[%clk 0:02:39]}  Bb7 {[%clk 0:02:41]} 15. e4 {[%clk 0:02:39]}  d4 {[%clk 0:02:36]} 16. e5 {[%clk 0:02:39]}  Qh6 {[%clk 0:02:32]} 17. Be4 {[%clk 0:02:33]}  Bxe4 {[%clk 0:02:25]} 18. Qxe4 {[%clk 0:02:33]}  dxc3 {[%clk 0:02:21]} 19. bxc3 {[%clk 0:02:32]}  Rad8 {[%clk 0:02:20]} 20. Nc4 {[%clk 0:02:32]}  g5 {[%clk 0:02:03]} 21. f5 {[%clk 0:02:25]}  exf5 {[%clk 0:01:59]} 22. Rxf5 {[%clk 0:02:25]}  Rxf5 {[%clk 0:01:25]} 23. Qxf5 {[%clk 0:02:24]}  Qg6 {[%clk 0:01:26]} 24. Qf3 {[%clk 0:02:08]}  Nf8 {[%clk 0:01:21]} 25. Rf1 {[%clk 0:01:59]}  Ne6 {[%clk 0:01:18]} 26. Nd6 {[%clk 0:01:55]}  h6 {[%clk 0:01:02]} 27. Qd5 {[%clk 0:01:52]}  Kh8 {[%clk 0:00:29]} 28. h3 {[%clk 0:01:46]}  g4 {[%clk 0:00:20]} 29. Rf6 {[%clk 0:01:39]}  Qb1+ {[%clk 0:00:16]} 30. Kh2 {[%clk 0:01:38]}  g3+ {[%clk 0:00:16]} 31. Kxg3 {[%clk 0:01:36]}  Qe1+ {[%clk 0:00:15]} 32. Kh2 {[%clk 0:01:33]}  Rg8 {[%clk 0:00:14]} 33. Rxh6+ {[%clk 0:01:23]}  Kg7 {[%clk 0:00:09]} 34. Qxe6 {[%clk 0:01:22]} 1-0

[Event "December 5 Late 2023"]
[Site "https://www.chess.com"]
[Date "2023.12.05"]
[Round "11"]
[White "Wieczorek, Zbigniew"]
[Black "Mazurkiewicz, Michal"]
[Result "0-1"]
[Board "67"]
[TimeControl "180+1"]
[WhiteFideId "1102001"]
[BlackFideId "1124943"]
[WhiteElo "2252"]
[BlackElo "2495"]
[WhiteTeam "POL"]
[BlackTeam "POL"]
[WhiteClock "0:00:06"]
[BlackClock "0:00:05"]

1. Nf3 {[%clk 0:02:56]}  Nf6 {[%clk 0:02:57]} 2. g3 {[%clk 0:02:52]}  g6 {[%clk 0:02:57]} 3. Bg2 {[%clk 0:02:52]}  Bg7 {[%clk 0:02:58]} 4. O-O {[%clk 0:02:53]}  O-O {[%clk 0:02:58]} 5. c4 {[%clk 0:02:54]}  d6 {[%clk 0:02:56]} 6. Nc3 {[%clk 0:02:54]}  c5 {[%clk 0:02:54]} 7. d3 {[%clk 0:02:48]}  Nc6 {[%clk 0:02:54]} 8. a3 {[%clk 0:02:48]}  Rb8 {[%clk 0:02:54]} 9. Rb1 {[%clk 0:02:49]}  b6 {[%clk 0:02:54]} 10. Bd2 {[%clk 0:02:49]}  Bb7 {[%clk 0:02:55]} 11. b4 {[%clk 0:02:50]}  e6 {[%clk 0:02:51]} 12. b5 {[%clk 0:02:38]}  Nd4 {[%clk 0:02:50]} 13. a4 {[%clk 0:02:23]}  Nxf3+ {[%clk 0:02:35]} 14. Bxf3 {[%clk 0:02:23]}  Bxf3 {[%clk 0:02:34]} 15. exf3 {[%clk 0:02:24]}  d5 {[%clk 0:02:35]} 16. Qe2 {[%clk 0:02:20]}  Qd7 {[%clk 0:02:27]} 17. Bf4 {[%clk 0:02:15]}  Rbd8 {[%clk 0:02:24]} 18. Be5 {[%clk 0:02:13]}  dxc4 {[%clk 0:02:20]} 19. dxc4 {[%clk 0:02:12]}  Qd3 {[%clk 0:02:18]} 20. Rfe1 {[%clk 0:02:11]}  Ne8 {[%clk 0:02:03]} 21. Rbd1 {[%clk 0:01:18]}  Qxe2 {[%clk 0:02:01]} 22. Rxe2 {[%clk 0:01:15]}  Rxd1+ {[%clk 0:01:41]} 23. Nxd1 {[%clk 0:01:13]}  Bxe5 {[%clk 0:01:42]} 24. Rxe5 {[%clk 0:01:12]}  Nd6 {[%clk 0:01:42]} 25. Nb2 {[%clk 0:01:09]}  Nf5 {[%clk 0:01:40]} 26. Kg2 {[%clk 0:01:02]}  Rd8 {[%clk 0:01:37]} 27. a5 {[%clk 0:01:02]}  Rd2 {[%clk 0:01:26]} 28. axb6 {[%clk 0:01:02]}  axb6 {[%clk 0:01:06]} 29. Na4 {[%clk 0:01:00]}  Rd6 {[%clk 0:01:07]} 30. Nxc5 {[%clk 0:00:49]}  bxc5 {[%clk 0:01:06]} 31. Rxc5 {[%clk 0:00:49]}  Rb6 {[%clk 0:00:24]} 32. f4 {[%clk 0:00:31]}  Kf8 {[%clk 0:00:22]} 33. Kf3 {[%clk 0:00:31]}  Ke7 {[%clk 0:00:22]} 34. Ke4 {[%clk 0:00:32]}  Nd6+ {[%clk 0:00:18]} 35. Kd3 {[%clk 0:00:31]}  Kd8 {[%clk 0:00:14]} 36. Re5 {[%clk 0:00:24]}  Nb7 {[%clk 0:00:12]} 37. Kc3 {[%clk 0:00:22]}  Rd6 {[%clk 0:00:10]} 38. c5 {[%clk 0:00:20]}  Rd1 {[%clk 0:00:08]} 39. c6 {[%clk 0:00:18]}  Nd6 {[%clk 0:00:08]} 40. Kb4 {[%clk 0:00:13]}  Rb1+ {[%clk 0:00:06]} 41. Ka5 {[%clk 0:00:13]}  Kc7 {[%clk 0:00:07]} 42. Ka4 {[%clk 0:00:09]}  Ra1+ {[%clk 0:00:06]} 43. Kb4 {[%clk 0:00:09]}  Rb1+ {[%clk 0:00:06]} 44. Ka5 {[%clk 0:00:07]}  Nc4+ {[%clk 0:00:06]} 45. Ka6 {[%clk 0:00:06]}  Ra1# {[%clk 0:00:05]} 0-1